[Event "Late-Titled-Tuesday-Blitz-January-23-2024"]
[Site "Chess.com"]
[Date "2024.01.23"]
[Round "1"]
[White "BardArtem"]
[Black "eCztery"]
[Result "1-0"]
[WhiteElo "2824"]
[BlackElo "2452"]
[TimeControl "180+1"]
[EndTime "14:08:02 PST"]
[Termination "BardArtem won by resignation"]

1. e4 {[%clk 0:03:00.9]} 1... c5 {[%clk 0:02:59.9]} 2. c3 {[%clk 0:03:01.3]}
2... g6 {[%clk 0:02:58.3]} 3. d4 {[%clk 0:03:00.4]} 3... cxd4 {[%clk 0:02:59.2]}
4. cxd4 {[%clk 0:03:00.9]} 4... Bg7 {[%clk 0:02:57.2]} 5. Nc3 {[%clk 0:02:59.7]}
5... d5 {[%clk 0:02:50.3]} 6. exd5 {[%clk 0:02:56.4]} 6... Nf6 {[%clk
0:02:49.5]} 7. Bb5+ {[%clk 0:02:55.6]} 7... Nbd7 {[%clk 0:02:46]} 8. d6 {[%clk
0:02:54.1]} 8... exd6 {[%clk 0:02:34.1]} 9. Nf3 {[%clk 0:02:53.3]} 9... O-O
{[%clk 0:02:34]} 10. O-O {[%clk 0:02:53]} 10... Nb6 {[%clk 0:02:34.3]} 11. h3
{[%clk 0:02:51.9]} 11... d5 {[%clk 0:02:18.6]} 12. Re1 {[%clk 0:02:51.4]} 12...
Bf5 {[%clk 0:02:17.4]} 13. Bf4 {[%clk 0:02:42.9]} 13... Rc8 {[%clk 0:02:16.1]}
14. Bd3 {[%clk 0:02:38.7]} 14... Qd7 {[%clk 0:02:06.6]} 15. Ne5 {[%clk
0:02:37.5]} 15... Qd8 {[%clk 0:01:43.3]} 16. Bxf5 {[%clk 0:02:35.9]} 16... gxf5
{[%clk 0:01:44.2]} 17. Bg5 {[%clk 0:02:34.4]} 17... Qd6 {[%clk 0:01:36.7]} 18.
Bxf6 {[%clk 0:02:30.4]} 18... Qxf6 {[%clk 0:01:33.3]} 19. a4 {[%clk 0:02:29.1]}
19... Rfe8 {[%clk 0:01:30.7]} 20. a5 {[%clk 0:02:28.7]} 20... Nc4 {[%clk
0:01:26.8]} 21. Nxd5 {[%clk 0:02:26.9]} 21... Qd6 {[%clk 0:01:23.9]} 22. Nxc4
{[%clk 0:02:23.7]} 22... Rxe1+ {[%clk 0:01:22]} 23. Qxe1 {[%clk 0:02:24.6]}
23... Qxd5 {[%clk 0:01:22.6]} 24. Ne3 {[%clk 0:02:25]} 24... Qe4 {[%clk
0:01:20]} 25. Rc1 {[%clk 0:02:20.8]} 25... Re8 {[%clk 0:01:18]} 26. Qd2 {[%clk
0:02:04.9]} 26... Bxd4 {[%clk 0:01:16.1]} 27. Re1 {[%clk 0:01:58.3]} 27... Qf4
{[%clk 0:01:07.6]} 28. Re2 {[%clk 0:01:44.7]} 28... Rd8 {[%clk 0:00:59.1]} 29.
Qd3 {[%clk 0:01:32.2]} 29... Bb6 {[%clk 0:00:47.1]} 30. Qc3 {[%clk 0:01:04.9]}
30... Bxe3 {[%clk 0:00:35.4]} 31. Rxe3 {[%clk 0:01:01.9]} 31... Rd1+ {[%clk
0:00:32.9]} 32. Re1 {[%clk 0:01:01.9]} 32... Rxe1+ {[%clk 0:00:27.4]} 33. Qxe1
{[%clk 0:01:02.8]} 33... Qe4 {[%clk 0:00:25]} 34. Qc3 {[%clk 0:00:53.8]} 34...
h6 {[%clk 0:00:23.3]} 35. Kh2 {[%clk 0:00:52.8]} 35... a6 {[%clk 0:00:23.2]} 36.
Qe3 {[%clk 0:00:44.5]} 36... Kg7 {[%clk 0:00:22.4]} 37. Kg3 {[%clk 0:00:40.9]}
37... Qb4 {[%clk 0:00:15.6]} 38. Qc3+ {[%clk 0:00:32.7]} 38... Qxc3+ {[%clk
0:00:15.7]} 39. bxc3 {[%clk 0:00:33.6]} 39... Kf6 {[%clk 0:00:14.7]} 40. Kf4
{[%clk 0:00:31.5]} 40... h5 {[%clk 0:00:14.6]} 41. h4 {[%clk 0:00:31.2]} 41...
Ke6 {[%clk 0:00:13.2]} 42. Kg5 {[%clk 0:00:31.3]} 42... Kd5 {[%clk 0:00:11.2]}
43. Kxh5 {[%clk 0:00:28.3]} 43... b5 {[%clk 0:00:12.1]} 44. Kg5 {[%clk
0:00:21.7]} 44... Kc4 {[%clk 0:00:12.5]} 45. h5 {[%clk 0:00:21.9]} 45... f6+
{[%clk 0:00:12.5]} 46. Kf4 {[%clk 0:00:17.6]} 46... Kxc3 {[%clk 0:00:13.4]} 47.
h6 {[%clk 0:00:18.2]} 47... b4 {[%clk 0:00:14.3]} 48. h7 {[%clk 0:00:19.1]}
48... b3 {[%clk 0:00:14.7]} 49. h8=Q {[%clk 0:00:20]} 49... b2 {[%clk
0:00:15.6]} 50. Qc8+ {[%clk 0:00:20]} 50... Kd2 {[%clk 0:00:15.3]} 51. Qb7
{[%clk 0:00:19.9]} 51... Kc1 {[%clk 0:00:15.3]} 52. Qc6+ {[%clk 0:00:19.9]}
52... Kd2 {[%clk 0:00:15.7]} 53. Qb6 {[%clk 0:00:20]} 53... Kc1 {[%clk
0:00:15.9]} 54. Qc5+ {[%clk 0:00:20.4]} 54... Kd2 {[%clk 0:00:15.6]} 55. Qb4+
{[%clk 0:00:21.1]} 55... Kc2 {[%clk 0:00:15.9]} 56. Qc4+ {[%clk 0:00:21.8]}
56... Kd2 {[%clk 0:00:16.1]} 57. Qb3 {[%clk 0:00:21.9]} 57... Kc1 {[%clk
0:00:16.1]} 58. Qc3+ {[%clk 0:00:22.5]} 58... Kb1 {[%clk 0:00:16.7]} 59. Ke3
{[%clk 0:00:23.4]} 59... Ka2 {[%clk 0:00:17.6]} 60. Qc4+ {[%clk 0:00:23.2]}
60... Ka3 {[%clk 0:00:15.5]} 61. Qc2 {[%clk 0:00:22.8]} 61... f4+ {[%clk
0:00:12.3]} 62. Kd3 {[%clk 0:00:22.6]} 62... Ka2 {[%clk 0:00:13.2]} 63. Kc3
{[%clk 0:00:22.2]} 1-0

[Event "Late-Titled-Tuesday-Blitz-January-23-2024"]
[Site "Chess.com"]
[Date "2024.01.23"]
[Round "1"]
[White "toninhojit"]
[Black "platy3"]
[Result "0-1"]
[WhiteElo "2475"]
[BlackElo "2872"]
[TimeControl "180+1"]
[EndTime "14:08:03 PST"]
[Termination "platy3 won by resignation"]

1. d4 {[%clk 0:02:58.7]} 1... Nf6 {[%clk 0:02:59.4]} 2. c4 {[%clk 0:02:58.8]}
2... e6 {[%clk 0:02:59.6]} 3. Nf3 {[%clk 0:02:59.1]} 3... Bb4+ {[%clk
0:02:58.4]} 4. Bd2 {[%clk 0:02:58.8]} 4... a5 {[%clk 0:02:58.6]} 5. g3 {[%clk
0:02:58.8]} 5... b6 {[%clk 0:02:57.4]} 6. Bg2 {[%clk 0:02:59]} 6... Bb7 {[%clk
0:02:57.8]} 7. O-O {[%clk 0:02:59]} 7... O-O {[%clk 0:02:58.1]} 8. Nc3 {[%clk
0:02:59.2]} 8... d6 {[%clk 0:02:53.8]} 9. a3 {[%clk 0:02:57]} 9... Bxc3 {[%clk
0:02:53.7]} 10. Bxc3 {[%clk 0:02:57.9]} 10... a4 {[%clk 0:02:53.8]} 11. d5
{[%clk 0:02:51.8]} 11... e5 {[%clk 0:02:50.7]} 12. Ne1 {[%clk 0:02:47.6]} 12...
Nbd7 {[%clk 0:02:50.2]} 13. Nd3 {[%clk 0:02:47]} 13... b5 {[%clk 0:02:29.2]} 14.
cxb5 {[%clk 0:02:37.1]} 14... Nb6 {[%clk 0:02:24.4]} 15. e4 {[%clk 0:02:33.8]}
15... Qd7 {[%clk 0:02:24]} 16. Rc1 {[%clk 0:02:17.4]} 16... Qxb5 {[%clk
0:02:22.8]} 17. Nb4 {[%clk 0:02:16.1]} 17... Nfd7 {[%clk 0:02:15.7]} 18. Re1
{[%clk 0:02:13.6]} 18... Nc5 {[%clk 0:02:15.3]} 19. Bf1 {[%clk 0:02:08.3]} 19...
Qd7 {[%clk 0:02:15]} 20. Qh5 {[%clk 0:01:54]} 20... Rfe8 {[%clk 0:02:12.9]} 21.
Rcd1 {[%clk 0:01:40.8]} 21... f6 {[%clk 0:02:06.1]} 22. Bh3 {[%clk 0:01:33.4]}
22... Qf7 {[%clk 0:02:05.9]} 23. Qh4 {[%clk 0:01:33.5]} 23... g5 {[%clk
0:02:02]} 24. Qh6 {[%clk 0:01:30.3]} 24... Qg6 {[%clk 0:02:02.3]} 25. Qxg6+
{[%clk 0:01:30.1]} 25... hxg6 {[%clk 0:02:03.2]} 26. Nd3 {[%clk 0:01:28.2]}
26... Nxd3 {[%clk 0:01:53.3]} 27. Rxd3 {[%clk 0:01:29.1]} 27... Bc8 {[%clk
0:01:53.8]} 28. Bxc8 {[%clk 0:01:25.7]} 28... Rexc8 {[%clk 0:01:53.4]} 29. Rc1
{[%clk 0:01:26.2]} 29... c5 {[%clk 0:01:48.3]} 30. dxc6 {[%clk 0:01:14.2]} 30...
Rxc6 {[%clk 0:01:48.2]} 31. Bd2 {[%clk 0:01:14.9]} 31... Nc4 {[%clk 0:01:30.3]}
32. Bb4 {[%clk 0:01:01.8]} 32... Nxb2 {[%clk 0:00:38.9]} 33. Rxc6 {[%clk
0:00:55.6]} 33... Nxd3 {[%clk 0:00:39.3]} 34. Bxd6 {[%clk 0:00:54.8]} 34... Kf7
{[%clk 0:00:39.9]} 35. Rc3 {[%clk 0:00:50.8]} 35... Nb2 {[%clk 0:00:34.2]} 36.
Rc7+ {[%clk 0:00:47.5]} 36... Ke6 {[%clk 0:00:18.6]} 37. Bb4 {[%clk 0:00:47.6]}
37... f5 {[%clk 0:00:19.1]} 38. Rc6+ {[%clk 0:00:41]} 38... Kf7 {[%clk
0:00:19.5]} 39. Bc3 {[%clk 0:00:32.9]} 39... Nd3 {[%clk 0:00:19.2]} 40. exf5
{[%clk 0:00:27.4]} 40... gxf5 {[%clk 0:00:20.1]} 41. Rd6 {[%clk 0:00:27.9]}
41... e4 {[%clk 0:00:20]} 42. Rf6+ {[%clk 0:00:28.1]} 42... Ke7 {[%clk 0:00:20]}
43. Rxf5 {[%clk 0:00:28.5]} 43... Rc8 {[%clk 0:00:20.7]} 44. Bb4+ {[%clk
0:00:17.4]} 44... Nxb4 {[%clk 0:00:16.4]} 45. axb4 {[%clk 0:00:18.3]} 45... Ra8
{[%clk 0:00:17]} 46. Rc5 {[%clk 0:00:16]} 46... a3 {[%clk 0:00:17.1]} 47. Rc1
{[%clk 0:00:16.7]} 47... a2 {[%clk 0:00:16.2]} 48. Ra1 {[%clk 0:00:16.9]} 48...
Kd6 {[%clk 0:00:16.9]} 49. Kf1 {[%clk 0:00:15.2]} 49... Kc6 {[%clk 0:00:17.1]}
50. Ke1 {[%clk 0:00:15.9]} 50... Kb5 {[%clk 0:00:17.5]} 51. Kd2 {[%clk
0:00:16.6]} 51... Ra3 {[%clk 0:00:09.9]} 52. Kc2 {[%clk 0:00:13.7]} 52... Kxb4
{[%clk 0:00:10.3]} 53. Kb2 {[%clk 0:00:14]} 53... Rf3 {[%clk 0:00:10.3]} 54.
Kxa2 {[%clk 0:00:11]} 54... Rxf2+ {[%clk 0:00:10]} 55. Kb1 {[%clk 0:00:11.6]}
55... Kb3 {[%clk 0:00:10.5]} 0-1

[Event "Late-Titled-Tuesday-Blitz-January-23-2024"]
[Site "Chess.com"]
[Date "2024.01.23"]
[Round "1"]
[White "emeli_chess"]
[Black "rezamahdavi2008"]
[Result "0-1"]
[WhiteElo "2461"]
[BlackElo "2854"]
[TimeControl "180+1"]
[EndTime "14:08:06 PST"]
[Termination "rezamahdavi2008 won by resignation"]

1. d4 {[%clk 0:03:00.9]} 1... Nf6 {[%clk 0:02:53.6]} 2. c4 {[%clk 0:02:59.6]}
2... e6 {[%clk 0:02:54]} 3. Nc3 {[%clk 0:02:59.7]} 3... Bb4 {[%clk 0:02:54.5]}
4. Qc2 {[%clk 0:02:59.9]} 4... d5 {[%clk 0:02:53.5]} 5. cxd5 {[%clk 0:02:59.6]}
5... exd5 {[%clk 0:02:50.1]} 6. Bg5 {[%clk 0:02:58.8]} 6... h6 {[%clk
0:02:50.1]} 7. Bxf6 {[%clk 0:02:57.7]} 7... Qxf6 {[%clk 0:02:51]} 8. a3 {[%clk
0:02:58.1]} 8... Bxc3+ {[%clk 0:02:49]} 9. Qxc3 {[%clk 0:02:58.2]} 9... O-O
{[%clk 0:02:49.7]} 10. e3 {[%clk 0:02:57.9]} 10... c6 {[%clk 0:02:48.5]} 11. Nf3
{[%clk 0:02:57.3]} 11... Bf5 {[%clk 0:02:48.2]} 12. Be2 {[%clk 0:02:57.2]} 12...
Nd7 {[%clk 0:02:48.6]} 13. O-O {[%clk 0:02:56.6]} 13... h5 {[%clk 0:02:47.8]}
14. b4 {[%clk 0:02:50.9]} 14... a6 {[%clk 0:02:48.1]} 15. Rfc1 {[%clk
0:02:47.5]} 15... g6 {[%clk 0:02:48.3]} 16. Ra2 {[%clk 0:02:44.3]} 16... Rfe8
{[%clk 0:02:45.2]} 17. Ne1 {[%clk 0:02:35.7]} 17... Nb6 {[%clk 0:02:37.6]} 18.
Nd3 {[%clk 0:02:12]} 18... Bxd3 {[%clk 0:02:34]} 19. Bxd3 {[%clk 0:02:09.9]}
19... h4 {[%clk 0:02:33.7]} 20. h3 {[%clk 0:02:08.6]} 20... Kg7 {[%clk
0:02:33.8]} 21. a4 {[%clk 0:01:58.9]} 21... Nd7 {[%clk 0:02:34.7]} 22. Rb2
{[%clk 0:01:53.6]} 22... Rec8 {[%clk 0:02:27]} 23. Be2 {[%clk 0:01:22.3]} 23...
Qe7 {[%clk 0:02:25.9]} 24. Bf3 {[%clk 0:01:15.6]} 24... Nf6 {[%clk 0:02:23.3]}
25. Qc5 {[%clk 0:01:13.9]} 25... Qe6 {[%clk 0:02:22.4]} 26. Rbc2 {[%clk
0:00:58.6]} 26... Nd7 {[%clk 0:02:18.6]} 27. Qc3 {[%clk 0:00:51.5]} 27... Nb6
{[%clk 0:02:17.1]} 28. Qb3 {[%clk 0:00:48.4]} 28... Nc4 {[%clk 0:02:10.9]} 29.
b5 {[%clk 0:00:42.3]} 29... cxb5 {[%clk 0:01:59.7]} 30. axb5 {[%clk 0:00:41.1]}
30... a5 {[%clk 0:01:38.6]} 31. Bxd5 {[%clk 0:00:32.5]} 31... Qxd5 {[%clk
0:01:39.5]} 32. Rxc4 {[%clk 0:00:32.2]} 32... a4 {[%clk 0:01:40.1]} 33. Qb4
{[%clk 0:00:22.2]} 33... Rxc4 {[%clk 0:01:37]} 34. Qxc4 {[%clk 0:00:21.5]} 34...
Qd6 {[%clk 0:00:44]} 35. Ra1 {[%clk 0:00:20.2]} 35... a3 {[%clk 0:00:44]} 36.
Ra2 {[%clk 0:00:20.2]} 36... Ra5 {[%clk 0:00:42.3]} 37. Qb3 {[%clk 0:00:19.5]}
37... b6 {[%clk 0:00:41.9]} 38. e4 {[%clk 0:00:13.5]} 38... Qf4 {[%clk 0:00:22]}
39. d5 {[%clk 0:00:09]} 39... Qc1+ {[%clk 0:00:17.3]} 40. Kh2 {[%clk 0:00:08.5]}
40... Qc5 {[%clk 0:00:18.2]} 41. g3 {[%clk 0:00:05.8]} 41... Qd4 {[%clk
0:00:09.8]} 42. Kg2 {[%clk 0:00:05.6]} 42... Qxe4+ {[%clk 0:00:10.1]} 43. Kh2
{[%clk 0:00:05.3]} 43... Qd4 {[%clk 0:00:09.9]} 44. Kg2 {[%clk 0:00:05.3]} 44...
hxg3 {[%clk 0:00:10.3]} 45. Kxg3 {[%clk 0:00:04.2]} 45... Qc5 {[%clk 0:00:10.3]}
46. Kg2 {[%clk 0:00:03.7]} 46... Rxb5 {[%clk 0:00:10.7]} 47. Qxa3 {[%clk
0:00:03.6]} 47... Qxd5+ {[%clk 0:00:11.5]} 48. f3 {[%clk 0:00:02.7]} 48... Qg5+
{[%clk 0:00:11.4]} 49. Kf2 {[%clk 0:00:03]} 49... Qh4+ {[%clk 0:00:10.5]} 50.
Kg2 {[%clk 0:00:02.4]} 50... Rg5+ {[%clk 0:00:11.2]} 51. Kf1 {[%clk 0:00:02.4]}
51... Qxh3+ {[%clk 0:00:11.4]} 52. Ke2 {[%clk 0:00:02.2]} 52... Rg2+ {[%clk
0:00:11.6]} 53. Ke3 {[%clk 0:00:02.7]} 53... Qe6+ {[%clk 0:00:11.8]} 54. Kd3
{[%clk 0:00:03]} 54... Rxa2 {[%clk 0:00:12.1]} 55. Qxa2 {[%clk 0:00:03]} 55...
Qxa2 {[%clk 0:00:12.3]} 0-1

[Event "Late-Titled-Tuesday-Blitz-January-23-2024"]
[Site "Chess.com"]
[Date "2024.01.23"]
[Round "1"]
[White "Arteler"]
[Black "ChristopherYoo"]
[Result "1-0"]
[WhiteElo "2525"]
[BlackElo "2970"]
[TimeControl "180+1"]
[EndTime "14:08:07 PST"]
[Termination "Arteler won on time"]

1. e4 {[%clk 0:03:00.9]} 1... c5 {[%clk 0:02:59.9]} 2. Nf3 {[%clk 0:03:00.9]}
2... d6 {[%clk 0:03:00.3]} 3. Bb5+ {[%clk 0:02:58.4]} 3... Bd7 {[%clk
0:03:00.4]} 4. Bxd7+ {[%clk 0:02:58.8]} 4... Nxd7 {[%clk 0:03:01.3]} 5. O-O
{[%clk 0:02:58.8]} 5... Ngf6 {[%clk 0:03:01.2]} 6. Re1 {[%clk 0:02:51.7]} 6...
e6 {[%clk 0:02:57.6]} 7. c3 {[%clk 0:02:50.4]} 7... Be7 {[%clk 0:02:57]} 8. d4
{[%clk 0:02:50.8]} 8... O-O {[%clk 0:02:57.4]} 9. h3 {[%clk 0:02:50.1]} 9... Rc8
{[%clk 0:02:52.6]} 10. e5 {[%clk 0:02:49.4]} 10... Ne8 {[%clk 0:02:52.5]} 11.
Bf4 {[%clk 0:02:48.7]} 11... cxd4 {[%clk 0:02:44.3]} 12. cxd4 {[%clk 0:02:48.7]}
12... dxe5 {[%clk 0:02:36.2]} 13. dxe5 {[%clk 0:02:48.1]} 13... Nc5 {[%clk
0:02:35.7]} 14. Nd4 {[%clk 0:02:32.6]} 14... Nc7 {[%clk 0:02:26.8]} 15. Nc3
{[%clk 0:02:32.7]} 15... Nd5 {[%clk 0:02:26]} 16. Nxd5 {[%clk 0:02:14.5]} 16...
Qxd5 {[%clk 0:02:25.6]} 17. Nf5 {[%clk 0:02:15.1]} 17... Rfe8 {[%clk 0:02:05.2]}
18. Qxd5 {[%clk 0:02:03.9]} 18... exd5 {[%clk 0:02:04.2]} 19. Red1 {[%clk
0:02:02.6]} 19... Ne6 {[%clk 0:01:35.1]} 20. Be3 {[%clk 0:02:01.6]} 20... Bc5
{[%clk 0:01:30.1]} 21. Rxd5 {[%clk 0:01:58.1]} 21... Bxe3 {[%clk 0:01:30.2]} 22.
Nxe3 {[%clk 0:01:59]} 22... Rc7 {[%clk 0:01:26.5]} 23. Rad1 {[%clk 0:01:54.9]}
23... h5 {[%clk 0:01:26.5]} 24. g3 {[%clk 0:01:50.5]} 24... h4 {[%clk
0:01:24.1]} 25. gxh4 {[%clk 0:01:42.4]} 25... Kh7 {[%clk 0:01:21.1]} 26. Rd7
{[%clk 0:01:41.9]} 26... Rec8 {[%clk 0:01:17.6]} 27. Kg2 {[%clk 0:01:30.8]}
27... Nf8 {[%clk 0:01:12.8]} 28. Rd8 {[%clk 0:01:16.7]} 28... Ng6 {[%clk
0:01:10.1]} 29. Rxc8 {[%clk 0:01:10.2]} 29... Rxc8 {[%clk 0:01:10.6]} 30. Rd7
{[%clk 0:01:11]} 30... Nxe5 {[%clk 0:01:01.9]} 31. Rxb7 {[%clk 0:01:09.9]} 31...
a6 {[%clk 0:01:02.4]} 32. Ng4 {[%clk 0:01:05.2]} 32... Ng6 {[%clk 0:00:47.5]}
33. Kg3 {[%clk 0:01:04.5]} 33... f5 {[%clk 0:00:42.4]} 34. h5 {[%clk 0:01:01.5]}
34... Nf8 {[%clk 0:00:36.7]} 35. Ne3 {[%clk 0:00:59.5]} 35... Rc5 {[%clk
0:00:31.4]} 36. Rf7 {[%clk 0:00:59.2]} 36... f4+ {[%clk 0:00:30.5]} 37. Rxf4
{[%clk 0:00:58.3]} 37... Ne6 {[%clk 0:00:29.7]} 38. Ra4 {[%clk 0:00:53.8]} 38...
a5 {[%clk 0:00:26.2]} 39. Re4 {[%clk 0:00:37]} 39... Ng5 {[%clk 0:00:20.3]} 40.
Re7 {[%clk 0:00:37.3]} 40... Kh6 {[%clk 0:00:15.1]} 41. Ng4+ {[%clk 0:00:28.3]}
41... Kxh5 {[%clk 0:00:13.9]} 42. h4 {[%clk 0:00:27.3]} 42... Nh7 {[%clk
0:00:10.8]} 43. Rxg7 {[%clk 0:00:27.8]} 43... Nf8 {[%clk 0:00:10.9]} 44. Rg5+
{[%clk 0:00:19.4]} 44... Rxg5 {[%clk 0:00:10.4]} 45. hxg5 {[%clk 0:00:20.3]}
45... Kxg5 {[%clk 0:00:11]} 46. Ne3 {[%clk 0:00:21.2]} 46... Ne6 {[%clk
0:00:10.5]} 47. Kf3 {[%clk 0:00:21.9]} 47... Nc5 {[%clk 0:00:09.9]} 48. b3
{[%clk 0:00:20.2]} 48... Nd3 {[%clk 0:00:09.7]} 49. Nc4 {[%clk 0:00:20.4]} 49...
Nc1 {[%clk 0:00:09.9]} 50. Nxa5 {[%clk 0:00:19.6]} 50... Nxa2 {[%clk 0:00:10.6]}
51. Ke4 {[%clk 0:00:20.2]} 51... Nc3+ {[%clk 0:00:06.9]} 52. Kd4 {[%clk
0:00:20.2]} 52... Na2 {[%clk 0:00:06.6]} 53. Nc6 {[%clk 0:00:20.6]} 53... Kf4
{[%clk 0:00:06.5]} 54. Ne5 {[%clk 0:00:18.6]} 54... Kf5 {[%clk 0:00:04.7]} 55.
Nd3 {[%clk 0:00:18.8]} 55... Kg4 {[%clk 0:00:04.9]} 56. b4 {[%clk 0:00:18.8]}
56... Kf3 {[%clk 0:00:02.3]} 57. b5 {[%clk 0:00:19.3]} 57... Ke2 {[%clk
0:00:02.3]} 58. b6 {[%clk 0:00:19.6]} 1-0

[Event "Late-Titled-Tuesday-Blitz-January-23-2024"]
[Site "Chess.com"]
[Date "2024.01.23"]
[Round "1"]
[White "rynos0411"]
[Black "SpeedofLight0"]
[Result "0-1"]
[WhiteElo "2500"]
[BlackElo "2940"]
[TimeControl "180+1"]
[EndTime "14:08:09 PST"]
[Termination "SpeedofLight0 won by resignation"]

1. e4 {[%clk 0:02:59.2]} 1... c6 {[%clk 0:02:58.6]} 2. d4 {[%clk 0:02:49.3]}
2... d5 {[%clk 0:02:58.7]} 3. exd5 {[%clk 0:02:50.2]} 3... cxd5 {[%clk
0:02:57.5]} 4. Bd3 {[%clk 0:02:50.6]} 4... Nc6 {[%clk 0:02:52.6]} 5. c3 {[%clk
0:02:50.8]} 5... Nf6 {[%clk 0:02:52.2]} 6. Nf3 {[%clk 0:02:50.2]} 6... Bg4
{[%clk 0:02:51.8]} 7. Bf4 {[%clk 0:02:50.5]} 7... e6 {[%clk 0:02:51.6]} 8. Nbd2
{[%clk 0:02:51.1]} 8... Bd6 {[%clk 0:02:51.5]} 9. Bxd6 {[%clk 0:02:50.1]} 9...
Qxd6 {[%clk 0:02:52.4]} 10. Qb3 {[%clk 0:02:50.1]} 10... O-O {[%clk 0:02:51.9]}
11. O-O {[%clk 0:02:50.3]} 11... Rab8 {[%clk 0:02:50.8]} 12. Rfe1 {[%clk
0:02:49.9]} 12... Bxf3 {[%clk 0:02:47.9]} 13. Nxf3 {[%clk 0:02:49.9]} 13... b5
{[%clk 0:02:48]} 14. Ne5 {[%clk 0:02:46.6]} 14... Nd7 {[%clk 0:02:46.9]} 15.
Nxd7 {[%clk 0:02:36.8]} 15... Qxd7 {[%clk 0:02:47.8]} 16. Bxb5 {[%clk
0:02:27.9]} 16... Qc7 {[%clk 0:02:44]} 17. Qa4 {[%clk 0:02:26.2]} 17... Ne7
{[%clk 0:02:40.3]} 18. Rab1 {[%clk 0:02:25.7]} 18... Nf5 {[%clk 0:02:39]} 19.
Bd3 {[%clk 0:02:25.3]} 19... Nd6 {[%clk 0:02:39.6]} 20. Qc2 {[%clk 0:02:25]}
20... g6 {[%clk 0:02:39]} 21. h4 {[%clk 0:02:24.7]} 21... Rb6 {[%clk 0:02:36.2]}
22. h5 {[%clk 0:02:23.9]} 22... Kg7 {[%clk 0:02:36.6]} 23. Re3 {[%clk
0:02:22.3]} 23... Qe7 {[%clk 0:02:30.2]} 24. Rg3 {[%clk 0:02:18.7]} 24... Qf6
{[%clk 0:02:29.8]} 25. Rf3 {[%clk 0:02:17]} 25... Qh4 {[%clk 0:02:25]} 26. Rh3
{[%clk 0:02:13.8]} 26... Qg5 {[%clk 0:02:21.8]} 27. Qe2 {[%clk 0:02:10.6]} 27...
Rfb8 {[%clk 0:02:17.4]} 28. Rg3 {[%clk 0:01:59.5]} 28... Qf4 {[%clk 0:02:16.3]}
29. Rg4 {[%clk 0:01:57.4]} 29... Qf6 {[%clk 0:02:12.9]} 30. g3 {[%clk 0:01:50]}
30... a5 {[%clk 0:02:05.6]} 31. Kg2 {[%clk 0:01:48]} 31... a4 {[%clk 0:01:55]}
32. Rf4 {[%clk 0:01:45.2]} 32... Qg5 {[%clk 0:01:53.9]} 33. Rg4 {[%clk
0:01:45.6]} 33... Qf6 {[%clk 0:01:53.9]} 34. Qc2 {[%clk 0:01:19.3]} 34... Nc4
{[%clk 0:01:25.5]} 35. Bxc4 {[%clk 0:01:14.3]} 35... dxc4 {[%clk 0:01:26.4]} 36.
Rf4 {[%clk 0:01:14]} 36... Qg5 {[%clk 0:01:24.8]} 37. hxg6 {[%clk 0:01:13.5]}
37... hxg6 {[%clk 0:01:24.3]} 38. Qe2 {[%clk 0:00:58.7]} 38... Qd5+ {[%clk
0:01:21.8]} 39. Qf3 {[%clk 0:00:21.9]} 39... Qxf3+ {[%clk 0:01:20]} 40. Kxf3
{[%clk 0:00:22.8]} 40... Rxb2 {[%clk 0:01:20]} 41. Rxb2 {[%clk 0:00:23.3]} 41...
Rxb2 {[%clk 0:01:20.9]} 42. d5 {[%clk 0:00:24.2]} 42... exd5 {[%clk 0:01:12.4]}
43. Rd4 {[%clk 0:00:24.3]} 43... Rxa2 {[%clk 0:01:06.6]} 44. Rxd5 {[%clk
0:00:24.5]} 44... Rc2 {[%clk 0:01:07.2]} 45. Ra5 {[%clk 0:00:22.1]} 45... Rxc3+
{[%clk 0:01:07]} 46. Ke4 {[%clk 0:00:22.2]} 46... Ra3 {[%clk 0:00:40.9]} 47. Kd4
{[%clk 0:00:21.9]} 47... c3 {[%clk 0:00:41.4]} 48. Kd3 {[%clk 0:00:22.5]} 48...
Ra2 {[%clk 0:00:38.3]} 49. f4 {[%clk 0:00:18.2]} 49... Rg2 {[%clk 0:00:38]} 50.
Kxc3 {[%clk 0:00:16.6]} 50... Rxg3+ {[%clk 0:00:38.3]} 51. Kd4 {[%clk
0:00:17.2]} 51... a3 {[%clk 0:00:37.6]} 52. Ke4 {[%clk 0:00:16.9]} 52... Kh6
{[%clk 0:00:34.6]} 53. Ra6 {[%clk 0:00:17]} 53... f5+ {[%clk 0:00:34.3]} 54. Kd4
{[%clk 0:00:17]} 54... Kh5 {[%clk 0:00:34.2]} 55. Ra8 {[%clk 0:00:16.7]} 55...
Kg4 {[%clk 0:00:34.2]} 56. Ke5 {[%clk 0:00:17.1]} 56... Re3+ {[%clk 0:00:34.3]}
57. Kf6 {[%clk 0:00:17.7]} 57... Kxf4 {[%clk 0:00:34.8]} 58. Kxg6 {[%clk
0:00:18.2]} 58... Kg4 {[%clk 0:00:35.3]} 59. Kf6 {[%clk 0:00:17.1]} 59... f4
{[%clk 0:00:35.9]} 60. Rg8+ {[%clk 0:00:17.5]} 60... Kf3 {[%clk 0:00:36.5]} 61.
Kf5 {[%clk 0:00:18.1]} 61... Rb3 {[%clk 0:00:27.6]} 62. Rh8 {[%clk 0:00:14]}
62... Ke3 {[%clk 0:00:26.6]} 63. Re8+ {[%clk 0:00:12.3]} 63... Kd2 {[%clk
0:00:24]} 64. Kxf4 {[%clk 0:00:10.8]} 64... a2 {[%clk 0:00:23.9]} 65. Ra8 {[%clk
0:00:11]} 65... Rb2 {[%clk 0:00:24.1]} 66. Ke4 {[%clk 0:00:10.3]} 66... Kc2
{[%clk 0:00:24.2]} 67. Kd4 {[%clk 0:00:10.4]} 67... Kb1 {[%clk 0:00:24.6]} 0-1